[Event "Early-Titled-Tuesday-Blitz-February-20-2024"]
[Site "Chess.com"]
[Date "2024.02.20"]
[Round "11"]
[White "GeorgiosSouleidis"]
[Black "DeArron_Fox"]
[Result "0-1"]
[WhiteElo "2660"]
[BlackElo "2526"]
[TimeControl "180+1"]
[EndTime "10:08:38 PST"]
[Termination "DeArron_Fox won by checkmate"]

1. e4 {[%clk 0:03:00.9]} 1... c5 {[%clk 0:02:46]} 2. Be2 {[%clk 0:03:00.1]} 2...
Nc6 {[%clk 0:02:43.3]} 3. d3 {[%clk 0:03:00.4]} 3... Nf6 {[%clk 0:02:42.1]} 4.
f4 {[%clk 0:03:00.7]} 4... d6 {[%clk 0:02:29.8]} 5. Nf3 {[%clk 0:03:00.6]} 5...
g6 {[%clk 0:02:30.3]} 6. O-O {[%clk 0:03:00.7]} 6... Bg7 {[%clk 0:02:31]} 7. c3
{[%clk 0:03:01.4]} 7... O-O {[%clk 0:02:31.6]} 8. Kh1 {[%clk 0:03:02]} 8... b5
{[%clk 0:02:31.4]} 9. a3 {[%clk 0:03:02.3]} 9... Rb8 {[%clk 0:02:30.7]} 10. Be3
{[%clk 0:03:02.6]} 10... a5 {[%clk 0:02:29.6]} 11. Nbd2 {[%clk 0:03:01.7]} 11...
b4 {[%clk 0:02:29.7]} 12. d4 {[%clk 0:03:01.8]} 12... cxd4 {[%clk 0:01:58]} 13.
cxd4 {[%clk 0:03:01.1]} 13... e5 {[%clk 0:01:54.8]} 14. fxe5 {[%clk 0:03:00.3]}
14... dxe5 {[%clk 0:01:50.6]} 15. d5 {[%clk 0:03:00.5]} 15... Nd4 {[%clk
0:01:11.2]} 16. Nxd4 {[%clk 0:02:58.5]} 16... exd4 {[%clk 0:01:09.4]} 17. Bxd4
{[%clk 0:02:58.5]} 17... Nxd5 {[%clk 0:01:03.8]} 18. Bxg7 {[%clk 0:02:31.8]}
18... Ne3 {[%clk 0:01:03.8]} 19. Be5 {[%clk 0:01:06.2]} 19... Nxd1 {[%clk
0:00:58.3]} 20. Raxd1 {[%clk 0:00:54.5]} 20... Rb7 {[%clk 0:00:52.6]} 21. Bf6
{[%clk 0:00:43.8]} 21... Qb6 {[%clk 0:00:33.1]} 22. e5 {[%clk 0:00:42.4]} 22...
Qe3 {[%clk 0:00:22.8]} 23. Bf3 {[%clk 0:00:35.2]} 23... Rd7 {[%clk 0:00:19.1]}
24. Ne4 {[%clk 0:00:35.6]} 24... Rxd1 {[%clk 0:00:15.6]} 25. Rxd1 {[%clk
0:00:36.5]} 25... Bb7 {[%clk 0:00:14.2]} 26. Bg5 {[%clk 0:00:29.3]} 26... Qb6
{[%clk 0:00:05]} 27. Nf6+ {[%clk 0:00:28.8]} 27... Kg7 {[%clk 0:00:04.8]} 28.
Nd7 {[%clk 0:00:24.8]} 28... Qa7 {[%clk 0:00:02.1]} 29. Bf6+ {[%clk 0:00:23.6]}
29... Kg8 {[%clk 0:00:02.6]} 30. Nxf8 {[%clk 0:00:24.1]} 30... Bxf3 {[%clk
0:00:03.1]} 31. gxf3 {[%clk 0:00:24.5]} 31... Qf2 {[%clk 0:00:03]} 32. Rd8
{[%clk 0:00:18.6]} 32... Qf1# {[%clk 0:00:02.3]} 0-1

[Event "Early-Titled-Tuesday-Blitz-February-20-2024"]
[Site "Chess.com"]
[Date "2024.02.20"]
[Round "11"]
[White "abeljusto"]
[Black "Yushko_Olga"]
[Result "0-1"]
[WhiteElo "2090"]
[BlackElo "2193"]
[TimeControl "180+1"]
[EndTime "10:08:38 PST"]
[Termination "Yushko_Olga won on time"]

1. d4 {[%clk 0:03:00.9]} 1... e6 {[%clk 0:02:58.5]} 2. Bf4 {[%clk 0:02:51.9]}
2... Nf6 {[%clk 0:02:58.5]} 3. e3 {[%clk 0:02:49.1]} 3... d5 {[%clk 0:02:59.2]}
4. Nf3 {[%clk 0:02:45.7]} 4... Be7 {[%clk 0:03:00]} 5. Ne5 {[%clk 0:02:40.4]}
5... O-O {[%clk 0:02:59.4]} 6. Nd2 {[%clk 0:02:40.1]} 6... c5 {[%clk 0:02:58.6]}
7. c3 {[%clk 0:02:39.8]} 7... Nc6 {[%clk 0:02:57.5]} 8. Bd3 {[%clk 0:02:39.4]}
8... Bd6 {[%clk 0:02:48.3]} 9. Bg3 {[%clk 0:02:35.8]} 9... Qb6 {[%clk
0:02:44.5]} 10. Rb1 {[%clk 0:02:34.4]} 10... cxd4 {[%clk 0:02:43.4]} 11. exd4
{[%clk 0:02:31.7]} 11... Bxe5 {[%clk 0:02:40.6]} 12. dxe5 {[%clk 0:02:28.8]}
12... Nd7 {[%clk 0:02:38.2]} 13. Nf3 {[%clk 0:02:27.6]} 13... f6 {[%clk
0:02:35.8]} 14. exf6 {[%clk 0:02:23.9]} 14... Nxf6 {[%clk 0:02:35.5]} 15. O-O
{[%clk 0:02:21.7]} 15... Bd7 {[%clk 0:02:33.7]} 16. Re1 {[%clk 0:02:20.1]} 16...
Rae8 {[%clk 0:02:33.4]} 17. Ne5 {[%clk 0:02:12.8]} 17... Nxe5 {[%clk 0:02:32.6]}
18. Bxe5 {[%clk 0:02:12.3]} 18... Bc6 {[%clk 0:02:18.4]} 19. Qe2 {[%clk
0:01:55.5]} 19... Ne4 {[%clk 0:02:13.4]} 20. Bd4 {[%clk 0:01:48.9]} 20... Qa5
{[%clk 0:02:09.2]} 21. f3 {[%clk 0:01:47.2]} 21... e5 {[%clk 0:02:00.5]} 22. b4
{[%clk 0:01:32.2]} 22... Qc7 {[%clk 0:01:53.1]} 23. Bxe5 {[%clk 0:00:32.4]}
23... Qxe5 {[%clk 0:01:46.1]} 24. fxe4 {[%clk 0:00:32.2]} 24... dxe4 {[%clk
0:01:45.8]} 25. Bc4+ {[%clk 0:00:27.2]} 25... Kh8 {[%clk 0:01:44.8]} 26. Qe3
{[%clk 0:00:24.9]} 26... Rf6 {[%clk 0:01:34.1]} 27. Rbd1 {[%clk 0:00:22.3]}
27... Rh6 {[%clk 0:01:33]} 28. g3 {[%clk 0:00:21.8]} 28... Qh5 {[%clk 0:01:29]}
29. Rd2 {[%clk 0:00:21.1]} 29... Rf8 {[%clk 0:01:23]} 30. Rf2 {[%clk 0:00:18.4]}
30... Rf3 {[%clk 0:01:16.7]} 31. Rxf3 {[%clk 0:00:17.4]} 31... Qxh2+ {[%clk
0:01:16.3]} 32. Kf1 {[%clk 0:00:15.9]} 32... Qh1+ {[%clk 0:01:13.8]} 33. Ke2
{[%clk 0:00:14.7]} 33... exf3+ {[%clk 0:01:12.6]} 34. Kd1 {[%clk 0:00:13.4]}
34... Qh5 {[%clk 0:01:10.8]} 35. g4 {[%clk 0:00:09.8]} 35... Rd6+ {[%clk
0:01:08.8]} 36. Kc1 {[%clk 0:00:09]} 36... Qg6 {[%clk 0:01:06.3]} 37. Qe7 {[%clk
0:00:05.5]} 37... h5 {[%clk 0:00:56.7]} 38. Bf7 {[%clk 0:00:04.1]} 38... Qf6
{[%clk 0:00:53.1]} 39. Qf8+ {[%clk 0:00:03.6]} 39... Kh7 {[%clk 0:00:53.2]} 40.
gxh5 {[%clk 0:00:01]} 40... Qf4+ {[%clk 0:00:48.8]} 0-1

[Event "Early-Titled-Tuesday-Blitz-February-20-2024"]
[Site "Chess.com"]
[Date "2024.02.20"]
[Round "11"]
[White "Schachmalanders"]
[Black "Kostukov_Alex"]
[Result "1-0"]
[WhiteElo "2469"]
[BlackElo "2345"]
[TimeControl "180+1"]
[EndTime "10:08:42 PST"]
[Termination "Schachmalanders won on time"]

1. e4 {[%clk 0:03:00.9]} 1... c5 {[%clk 0:02:59.2]} 2. Nc3 {[%clk 0:02:59.2]}
2... g6 {[%clk 0:02:59.4]} 3. g3 {[%clk 0:02:59.6]} 3... Bg7 {[%clk 0:02:59.7]}
4. Bg2 {[%clk 0:03:00.3]} 4... Nc6 {[%clk 0:03:00.2]} 5. Nge2 {[%clk 0:03:01]}
5... d6 {[%clk 0:02:56.5]} 6. d3 {[%clk 0:03:01.3]} 6... e5 {[%clk 0:02:57.1]}
7. Be3 {[%clk 0:03:01.2]} 7... Nge7 {[%clk 0:02:56.1]} 8. Qd2 {[%clk 0:03:01.6]}
8... Nd4 {[%clk 0:02:56.2]} 9. O-O-O {[%clk 0:03:01.6]} 9... Bh3 {[%clk
0:02:53.9]} 10. Bxh3 {[%clk 0:02:55.9]} 10... Nf3 {[%clk 0:02:52.2]} 11. Bh6
{[%clk 0:02:56.5]} 11... Nxd2 {[%clk 0:02:39.5]} 12. Bxg7 {[%clk 0:02:56.1]}
12... Rg8 {[%clk 0:02:39.6]} 13. Bf6 {[%clk 0:02:56.5]} 13... Qa5 {[%clk
0:01:42.8]} 14. Bxe7 {[%clk 0:02:36.9]} 14... Kxe7 {[%clk 0:01:38.9]} 15. Rxd2
{[%clk 0:02:35.4]} 15... Rgd8 {[%clk 0:01:24.6]} 16. f4 {[%clk 0:02:28.9]} 16...
f6 {[%clk 0:01:23]} 17. Rf1 {[%clk 0:02:27.6]} 17... b5 {[%clk 0:01:19.7]} 18.
Nd5+ {[%clk 0:02:27.3]} 18... Kf8 {[%clk 0:00:54.5]} 19. fxe5 {[%clk 0:02:26.3]}
19... dxe5 {[%clk 0:00:54.1]} 20. Nec3 {[%clk 0:02:10.5]} 20... b4 {[%clk
0:00:44.8]} 21. Nb1 {[%clk 0:01:56]} 21... Qxa2 {[%clk 0:00:34.7]} 22. Rxf6+
{[%clk 0:01:55.5]} 22... Kg7 {[%clk 0:00:34.6]} 23. Rdf2 {[%clk 0:01:55.3]}
23... Rf8 {[%clk 0:00:34.7]} 24. Be6 {[%clk 0:01:52.1]} 24... Rxf6 {[%clk
0:00:32.6]} 25. Rxf6 {[%clk 0:01:49.9]} 25... Rf8 {[%clk 0:00:29.3]} 26. Rxf8
{[%clk 0:01:43.6]} 26... Kxf8 {[%clk 0:00:29.1]} 27. Nd2 {[%clk 0:01:17.4]}
27... Qa1+ {[%clk 0:00:16.8]} 28. Nb1 {[%clk 0:01:17.3]} 28... Qa6 {[%clk
0:00:14.8]} 29. Bh3 {[%clk 0:01:12]} 29... c4 {[%clk 0:00:12]} 30. Bf1 {[%clk
0:01:08.7]} 30... c3 {[%clk 0:00:08.4]} 31. bxc3 {[%clk 0:01:07.8]} 31... bxc3
{[%clk 0:00:08.7]} 32. Nbxc3 {[%clk 0:01:08.2]} 32... Qa1+ {[%clk 0:00:07.9]}
33. Nb1 {[%clk 0:01:08.1]} 33... Qd4 {[%clk 0:00:07.4]} 34. Be2 {[%clk
0:00:55.8]} 34... Qg1+ {[%clk 0:00:06.9]} 35. Bd1 {[%clk 0:00:54.4]} 35... Qxh2
{[%clk 0:00:07.8]} 36. c4 {[%clk 0:00:50.4]} 36... Qxg3 {[%clk 0:00:07.2]} 37.
Kc2 {[%clk 0:00:50.6]} 37... h5 {[%clk 0:00:06.3]} 38. c5 {[%clk 0:00:50.9]}
38... Qf2+ {[%clk 0:00:06.2]} 39. Nd2 {[%clk 0:00:48.8]} 39... Qxc5+ {[%clk
0:00:07.1]} 40. Nc4 {[%clk 0:00:49.1]} 40... h4 {[%clk 0:00:05.1]} 41. Bg4
{[%clk 0:00:49.2]} 41... Qg1 {[%clk 0:00:03.3]} 42. Be6 {[%clk 0:00:47.1]} 42...
h3 {[%clk 0:00:02]} 43. Nxe5 {[%clk 0:00:46.9]} 43... Qh2+ {[%clk 0:00:01.8]}
44. Kd1 {[%clk 0:00:43.9]} 44... Qxe5 {[%clk 0:00:02.7]} 45. Bxh3 {[%clk
0:00:44.1]} 1-0

[Event "Early-Titled-Tuesday-Blitz-February-20-2024"]
[Site "Chess.com"]
[Date "2024.02.20"]
[Round "11"]
[White "annamaja"]
[Black "Louis-Paulsen-Fan"]
[Result "1-0"]
[WhiteElo "2395"]
[BlackElo "2233"]
[TimeControl "180+1"]
[EndTime "10:08:42 PST"]
[Termination "annamaja won by resignation"]

1. e4 {[%clk 0:03:00.9]} 1... Nf6 {[%clk 0:02:48.4]} 2. e5 {[%clk 0:02:59.7]}
2... Nd5 {[%clk 0:02:48.2]} 3. c4 {[%clk 0:03:00.1]} 3... Nb6 {[%clk 0:02:48.4]}
4. d4 {[%clk 0:03:00.1]} 4... d6 {[%clk 0:02:48.7]} 5. exd6 {[%clk 0:03:00.8]}
5... cxd6 {[%clk 0:02:49.1]} 6. Nf3 {[%clk 0:03:01.4]} 6... g6 {[%clk
0:02:49.6]} 7. Bd3 {[%clk 0:03:00.9]} 7... Bg7 {[%clk 0:02:49.7]} 8. O-O {[%clk
0:03:00.2]} 8... O-O {[%clk 0:02:49.6]} 9. Be3 {[%clk 0:03:00.9]} 9... Bg4
{[%clk 0:02:48.2]} 10. Nbd2 {[%clk 0:03:00.9]} 10... Nc6 {[%clk 0:02:46.3]} 11.
h3 {[%clk 0:02:55.3]} 11... Bxf3 {[%clk 0:02:45.7]} 12. Nxf3 {[%clk 0:02:54.7]}
12... e5 {[%clk 0:02:46]} 13. d5 {[%clk 0:02:49.5]} 13... Nb4 {[%clk 0:02:41.3]}
14. Be2 {[%clk 0:02:46.5]} 14... h6 {[%clk 0:02:32.2]} 15. Qd2 {[%clk
0:02:44.5]} 15... Na6 {[%clk 0:02:16.5]} 16. Bxh6 {[%clk 0:02:42.4]} 16... Rc8
{[%clk 0:02:13.6]} 17. Rac1 {[%clk 0:02:38.2]} 17... Re8 {[%clk 0:01:51.7]} 18.
Bxg7 {[%clk 0:02:36.2]} 18... Kxg7 {[%clk 0:01:52.6]} 19. Ng5 {[%clk 0:02:33.4]}
19... Nc5 {[%clk 0:01:41.9]} 20. Bg4 {[%clk 0:02:27.7]} 20... f5 {[%clk
0:01:27.9]} 21. b4 {[%clk 0:02:25.3]} 21... fxg4 {[%clk 0:00:52.1]} 22. bxc5
{[%clk 0:02:24.4]} 22... Rxc5 {[%clk 0:00:52.3]} 23. Ne6+ {[%clk 0:02:24.1]}
23... Rxe6 {[%clk 0:00:52.5]} 24. dxe6 {[%clk 0:02:25]} 24... gxh3 {[%clk
0:00:48.4]} 25. gxh3 {[%clk 0:02:19]} 25... Qe7 {[%clk 0:00:40.3]} 26. Kh2
{[%clk 0:02:12.8]} 26... Qxe6 {[%clk 0:00:38.1]} 27. Rg1 {[%clk 0:02:11.8]}
27... Rxc4 {[%clk 0:00:29.2]} 28. Rxc4 {[%clk 0:01:50.3]} 28... Nxc4 {[%clk
0:00:30.1]} 29. Qb4 {[%clk 0:01:49.7]} 29... b6 {[%clk 0:00:28.6]} 30. Rg4
{[%clk 0:01:46.5]} 30... e4 {[%clk 0:00:27.6]} 31. Qc3+ {[%clk 0:01:42.8]} 31...
Kf7 {[%clk 0:00:26.8]} 32. Qh8 {[%clk 0:01:37.4]} 32... Ne5 {[%clk 0:00:15.8]}
33. Rf4+ {[%clk 0:01:36.8]} 33... Ke7 {[%clk 0:00:12.7]} 34. Qb8 {[%clk
0:01:07.7]} 34... d5 {[%clk 0:00:10.6]} 35. Qxa7+ {[%clk 0:01:03.6]} 35... Ke8
{[%clk 0:00:09.9]} 36. Qb8+ {[%clk 0:00:54]} 36... Ke7 {[%clk 0:00:10.1]} 37.
Qf8+ {[%clk 0:00:50.5]} 37... Kd7 {[%clk 0:00:09.3]} 38. Rf6 {[%clk 0:00:48.5]}
38... Nf3+ {[%clk 0:00:07.7]} 39. Kg2 {[%clk 0:00:41.6]} 39... Qe5 {[%clk
0:00:07.8]} 40. Qg7+ {[%clk 0:00:29.2]} 1-0

[Event "Early-Titled-Tuesday-Blitz-February-20-2024"]
[Site "Chess.com"]
[Date "2024.02.20"]
[Round "11"]
[White "Sofia_Blokhin"]
[Black "manipun1"]
[Result "0-1"]
[WhiteElo "2227"]
[BlackElo "2393"]
[TimeControl "180+1"]
[EndTime "10:08:43 PST"]
[Termination "manipun1 won by resignation"]

1. d4 {[%clk 0:03:00.9]} 1... d6 {[%clk 0:02:59.2]} 2. e4 {[%clk 0:03:00.2]}
2... Nf6 {[%clk 0:02:55.9]} 3. Nc3 {[%clk 0:02:59.3]} 3... e5 {[%clk 0:02:54.7]}
4. f3 {[%clk 0:02:55.1]} 4... Nc6 {[%clk 0:02:52.9]} 5. Nge2 {[%clk 0:02:49.5]}
5... Be7 {[%clk 0:02:52.3]} 6. Be3 {[%clk 0:02:49.3]} 6... O-O {[%clk
0:02:51.7]} 7. Qd2 {[%clk 0:02:49.5]} 7... h6 {[%clk 0:02:51.6]} 8. O-O-O {[%clk
0:02:49]} 8... Nh7 {[%clk 0:02:49]} 9. d5 {[%clk 0:02:48.5]} 9... Nb8 {[%clk
0:02:47.9]} 10. g4 {[%clk 0:02:39]} 10... Bg5 {[%clk 0:02:42]} 11. f4 {[%clk
0:02:35.5]} 11... exf4 {[%clk 0:02:39.4]} 12. Nxf4 {[%clk 0:02:34.6]} 12... Nd7
{[%clk 0:02:37.1]} 13. Qf2 {[%clk 0:02:28.4]} 13... Ne5 {[%clk 0:02:33.6]} 14.
h3 {[%clk 0:02:23.3]} 14... Nf6 {[%clk 0:02:27.3]} 15. Be2 {[%clk 0:02:21.3]}
15... b5 {[%clk 0:02:18.5]} 16. b4 {[%clk 0:02:09.8]} 16... Bxg4 {[%clk
0:02:09.7]} 17. hxg4 {[%clk 0:02:08.6]} 17... Nfxg4 {[%clk 0:02:08.6]} 18. Bxg4
{[%clk 0:02:07.6]} 18... Nxg4 {[%clk 0:02:09.5]} 19. Qf3 {[%clk 0:02:05.8]}
19... Nxe3 {[%clk 0:02:09.7]} 20. Qxe3 {[%clk 0:02:06.1]} 20... Qf6 {[%clk
0:02:04.6]} 21. Rhf1 {[%clk 0:02:02.9]} 21... a5 {[%clk 0:02:04]} 22. Nxb5
{[%clk 0:01:48.8]} 22... axb4 {[%clk 0:02:00]} 23. Nd4 {[%clk 0:01:29.6]} 23...
Rxa2 {[%clk 0:01:56.1]} 24. Kd2 {[%clk 0:01:15.5]} 24... b3 {[%clk 0:01:49.3]}
25. Nxb3 {[%clk 0:01:12.7]} 25... Qb2 {[%clk 0:01:49.8]} 26. Qc3 {[%clk
0:01:09.7]} 26... Qa3 {[%clk 0:01:39.3]} 27. Ke3 {[%clk 0:01:05.2]} 27... f5
{[%clk 0:01:28.5]} 28. exf5 {[%clk 0:00:55.4]} 28... Rxf5 {[%clk 0:01:29.4]} 29.
Ra1 {[%clk 0:00:42.6]} 29... Qa7+ {[%clk 0:01:17.5]} 30. Qd4 {[%clk 0:00:39.2]}
30... Rxa1 {[%clk 0:01:02.1]} 31. Nxa1 {[%clk 0:00:27.1]} 31... Qxd4+ {[%clk
0:01:00.1]} 32. Kxd4 {[%clk 0:00:27.4]} 32... Rxf4+ {[%clk 0:01:00.6]} 33. Rxf4
{[%clk 0:00:26.6]} 33... Bxf4 {[%clk 0:01:01.5]} 34. Ke4 {[%clk 0:00:21.6]}
34... Be5 {[%clk 0:01:01.1]} 35. Nb3 {[%clk 0:00:20.3]} 35... h5 {[%clk
0:01:01.3]} 36. Nd2 {[%clk 0:00:20.6]} 36... h4 {[%clk 0:01:00.6]} 37. Kf3
{[%clk 0:00:20.9]} 37... h3 {[%clk 0:00:59.3]} 38. Kf2 {[%clk 0:00:20.3]} 38...
g5 {[%clk 0:00:56.3]} 39. Nf3 {[%clk 0:00:20.1]} 39... g4 {[%clk 0:00:55.2]} 40.
Ng5 {[%clk 0:00:17.8]} 40... g3+ {[%clk 0:00:55.1]} 41. Kg1 {[%clk 0:00:16.3]}
41... Bd4+ {[%clk 0:00:52.9]} 42. Kh1 {[%clk 0:00:12.5]} 42... g2+ {[%clk
0:00:53.8]} 43. Kh2 {[%clk 0:00:11.8]} 43... g1=Q+ {[%clk 0:00:54.7]} 44. Kxh3
{[%clk 0:00:12.4]} 44... Qxg5 {[%clk 0:00:53.7]} 45. c3 {[%clk 0:00:11.5]} 45...
Bf2 {[%clk 0:00:52.7]} 0-1

[Event "Early-Titled-Tuesday-Blitz-February-20-2024"]
[Site "Chess.com"]
[Date "2024.02.20"]
[Round "11"]
[White "lluiss"]
[Black "maurovargas01"]
[Result "1-0"]
[WhiteElo "2164"]
[BlackElo "1871"]
[TimeControl "180+1"]
[EndTime "10:08:48 PST"]
[Termination "lluiss won on time"]

1. Nf3 {[%clk 0:03:00.9]} 1... Nc6 {[%clk 0:02:57.9]} 2. d4 {[%clk 0:02:59.9]}
2... d5 {[%clk 0:02:57.1]} 3. c4 {[%clk 0:02:59.8]} 3... e6 {[%clk 0:02:56.7]}
4. g3 {[%clk 0:02:59.6]} 4... dxc4 {[%clk 0:02:55.5]} 5. Qa4 {[%clk 0:02:51.3]}
5... Bd7 {[%clk 0:02:49.4]} 6. Qxc4 {[%clk 0:02:51]} 6... Bb4+ {[%clk
0:02:44.2]} 7. Nbd2 {[%clk 0:02:44.1]} 7... Nf6 {[%clk 0:02:43.2]} 8. Bg2 {[%clk
0:02:43.7]} 8... Ne4 {[%clk 0:02:40.6]} 9. O-O {[%clk 0:02:35.1]} 9... Nd6
{[%clk 0:02:39.8]} 10. Qc2 {[%clk 0:02:32.1]} 10... O-O {[%clk 0:02:37.3]} 11.
a3 {[%clk 0:02:32.3]} 11... Ba5 {[%clk 0:02:36.5]} 12. b4 {[%clk 0:02:27.4]}
12... Bb6 {[%clk 0:01:28.1]} 13. Bb2 {[%clk 0:02:13.2]} 13... Nf5 {[%clk
0:01:24.8]} 14. Nb3 {[%clk 0:02:08.5]} 14... h6 {[%clk 0:01:24.2]} 15. e4 {[%clk
0:02:06.5]} 15... Nfe7 {[%clk 0:01:16.3]} 16. Nc5 {[%clk 0:02:06]} 16... Kh8
{[%clk 0:01:05.4]} 17. Nxb7 {[%clk 0:02:01.3]} 17... Qc8 {[%clk 0:00:59.5]} 18.
Nc5 {[%clk 0:02:01.1]} 18... Ng8 {[%clk 0:00:55.8]} 19. d5 {[%clk 0:01:45.6]}
19... exd5 {[%clk 0:00:50.5]} 20. exd5 {[%clk 0:01:45.6]} 20... Nce7 {[%clk
0:00:50.6]} 21. Ne5 {[%clk 0:01:45.5]} 21... Bf5 {[%clk 0:00:50]} 22. Qd2 {[%clk
0:01:38]} 22... Qd8 {[%clk 0:00:42.2]} 23. Rad1 {[%clk 0:01:24.4]} 23... Qd6
{[%clk 0:00:41.5]} 24. Rfe1 {[%clk 0:01:19.7]} 24... Bxc5 {[%clk 0:00:41.3]} 25.
bxc5 {[%clk 0:01:17.4]} 25... Qxc5 {[%clk 0:00:41.3]} 26. d6 {[%clk 0:00:54.3]}
26... cxd6 {[%clk 0:00:37.4]} 27. Bxa8 {[%clk 0:00:54.1]} 27... dxe5 {[%clk
0:00:32.6]} 28. Bg2 {[%clk 0:00:53.9]} 28... Nf6 {[%clk 0:00:29.1]} 29. Rxe5
{[%clk 0:00:51.9]} 29... Qc7 {[%clk 0:00:22.8]} 30. Rde1 {[%clk 0:00:51.8]}
30... Ng6 {[%clk 0:00:17.4]} 31. Rxf5 {[%clk 0:00:51]} 31... Qb6 {[%clk
0:00:11.6]} 32. Bd4 {[%clk 0:00:31.6]} 32... Rd8 {[%clk 0:00:08.4]} 33. Bxb6
{[%clk 0:00:23]} 33... Rxd2 {[%clk 0:00:07.8]} 34. Bxa7 {[%clk 0:00:22.7]} 1-0

[Event "Early-Titled-Tuesday-Blitz-February-20-2024"]
[Site "Chess.com"]
[Date "2024.02.20"]
[Round "11"]
[White "Saxar85"]
[Black "MatthewG-p4p"]
[Result "0-1"]
[WhiteElo "2732"]
[BlackElo "2889"]
[TimeControl "180+1"]
[EndTime "10:08:49 PST"]
[Termination "MatthewG-p4p won on time"]

1. e4 {[%clk 0:02:49.3]} 1... e6 {[%clk 0:03:00.1]} 2. d4 {[%clk 0:02:48.4]}
2... d5 {[%clk 0:03:00.7]} 3. e5 {[%clk 0:02:45.8]} 3... c5 {[%clk 0:03:00.8]}
4. c3 {[%clk 0:02:45.8]} 4... Qb6 {[%clk 0:03:01.2]} 5. Nf3 {[%clk 0:02:45.2]}
5... Nc6 {[%clk 0:02:58.8]} 6. Na3 {[%clk 0:02:44.3]} 6... cxd4 {[%clk
0:02:57.4]} 7. cxd4 {[%clk 0:02:42.9]} 7... Bb4+ {[%clk 0:02:57.9]} 8. Bd2
{[%clk 0:02:42.3]} 8... Nge7 {[%clk 0:02:58.8]} 9. Nc2 {[%clk 0:02:36.2]} 9...
Bxd2+ {[%clk 0:02:58.9]} 10. Qxd2 {[%clk 0:02:36.1]} 10... Qxb2 {[%clk
0:02:59.8]} 11. Bd3 {[%clk 0:02:30.7]} 11... Qb6 {[%clk 0:03:00.1]} 12. O-O
{[%clk 0:02:30.1]} 12... h6 {[%clk 0:02:45.4]} 13. h4 {[%clk 0:02:25.6]} 13...
Bd7 {[%clk 0:02:39.8]} 14. Rab1 {[%clk 0:02:24.3]} 14... Qc7 {[%clk 0:02:38.8]}
15. Rfc1 {[%clk 0:02:23.6]} 15... Na5 {[%clk 0:02:29]} 16. Ne3 {[%clk
0:02:17.1]} 16... Bc6 {[%clk 0:02:26.7]} 17. h5 {[%clk 0:02:15.2]} 17... Nc4
{[%clk 0:02:22.6]} 18. Bxc4 {[%clk 0:01:52.3]} 18... dxc4 {[%clk 0:02:23.5]} 19.
Nxc4 {[%clk 0:01:52.2]} 19... O-O {[%clk 0:02:20.7]} 20. Nd6 {[%clk 0:01:50.1]}
20... Qd7 {[%clk 0:02:17.6]} 21. Qf4 {[%clk 0:01:41.9]} 21... Rad8 {[%clk
0:02:12]} 22. Nd2 {[%clk 0:01:38.6]} 22... f6 {[%clk 0:02:00.2]} 23. Qg4 {[%clk
0:01:13.3]} 23... Nd5 {[%clk 0:01:41.9]} 24. g3 {[%clk 0:00:28.4]} 24... fxe5
{[%clk 0:01:34.2]} 25. dxe5 {[%clk 0:00:27.9]} 25... Qe7 {[%clk 0:01:29.3]} 26.
N2e4 {[%clk 0:00:25.7]} 26... Rf5 {[%clk 0:00:58.2]} 27. Nxf5 {[%clk 0:00:20.8]}
27... exf5 {[%clk 0:00:59.1]} 28. Qxf5 {[%clk 0:00:20.6]} 28... Rf8 {[%clk
0:00:59.9]} 29. Qg4 {[%clk 0:00:17.1]} 29... Qxe5 {[%clk 0:01:00.1]} 30. Re1
{[%clk 0:00:15.9]} 30... Kh8 {[%clk 0:00:22.1]} 31. Rbd1 {[%clk 0:00:14.5]}
31... Qb2 {[%clk 0:00:18.5]} 32. Rd2 {[%clk 0:00:13.7]} 32... Qb4 {[%clk
0:00:18.5]} 33. Ree2 {[%clk 0:00:09.3]} 33... Nf6 {[%clk 0:00:16.8]} 34. Nxf6
{[%clk 0:00:08.5]} 34... Qb1+ {[%clk 0:00:16.8]} 0-1

[Event "Early-Titled-Tuesday-Blitz-February-20-2024"]
[Site "Chess.com"]
[Date "2024.02.20"]
[Round "11"]
[White "Nikolakis2014"]
[Black "dmosesov"]
[Result "1-0"]
[WhiteElo "2750"]
[BlackElo "2605"]
[TimeControl "180+1"]
[EndTime "10:08:50 PST"]
[Termination "Nikolakis2014 won on time"]

1. d4 {[%clk 0:02:54.1]} 1... Nf6 {[%clk 0:02:59.9]} 2. c4 {[%clk 0:02:53.5]}
2... e6 {[%clk 0:02:58.2]} 3. Nc3 {[%clk 0:02:52.3]} 3... Bb4 {[%clk 0:02:57.7]}
4. e3 {[%clk 0:02:51.4]} 4... O-O {[%clk 0:02:56.1]} 5. a3 {[%clk 0:02:50.8]}
5... Bxc3+ {[%clk 0:02:53.3]} 6. bxc3 {[%clk 0:02:50.8]} 6... c5 {[%clk
0:02:50.4]} 7. Bd3 {[%clk 0:02:50.7]} 7... Nc6 {[%clk 0:02:46.8]} 8. Ne2 {[%clk
0:02:50.3]} 8... b6 {[%clk 0:02:46.9]} 9. e4 {[%clk 0:02:48.5]} 9... d6 {[%clk
0:02:41.7]} 10. Bg5 {[%clk 0:02:47.7]} 10... h6 {[%clk 0:02:40.6]} 11. Bh4
{[%clk 0:02:47.2]} 11... g5 {[%clk 0:02:07.7]} 12. Bg3 {[%clk 0:02:46.3]} 12...
e5 {[%clk 0:02:08.3]} 13. O-O {[%clk 0:02:35.6]} 13... Kg7 {[%clk 0:01:56.4]}
14. f3 {[%clk 0:02:28.4]} 14... Qe7 {[%clk 0:01:09.2]} 15. Bf2 {[%clk
0:02:26.6]} 15... Nh5 {[%clk 0:01:02.8]} 16. Kh1 {[%clk 0:02:21.7]} 16... Na5
{[%clk 0:01:02]} 17. Be3 {[%clk 0:01:33.4]} 17... Be6 {[%clk 0:00:32.8]} 18. d5
{[%clk 0:01:17.5]} 18... Bc8 {[%clk 0:00:32.4]} 19. g4 {[%clk 0:01:16]} 19...
Nf4 {[%clk 0:00:27.9]} 20. Ng3 {[%clk 0:01:16]} 20... Kh7 {[%clk 0:00:21.6]} 21.
Ra2 {[%clk 0:01:15.2]} 21... Rg8 {[%clk 0:00:20.4]} 22. h4 {[%clk 0:01:11.2]}
22... gxh4 {[%clk 0:00:17.3]} 23. Bxf4 {[%clk 0:01:11]} 23... hxg3 {[%clk
0:00:15.6]} 24. Bxg3 {[%clk 0:01:10.4]} 24... Ba6 {[%clk 0:00:14.1]} 25. Rh2
{[%clk 0:01:09.9]} 25... Bxc4 {[%clk 0:00:14.1]} 26. Rg1 {[%clk 0:01:04.3]}
26... Bxd3 {[%clk 0:00:13.7]} 27. Qxd3 {[%clk 0:01:04]} 27... Rg6 {[%clk
0:00:13.7]} 28. Be1 {[%clk 0:01:03.8]} 28... Rag8 {[%clk 0:00:14]} 29. Bd2
{[%clk 0:01:03.9]} 29... Kg7 {[%clk 0:00:13.5]} 30. Rg3 {[%clk 0:01:03.6]} 30...
Rh8 {[%clk 0:00:13.8]} 31. Rgh3 {[%clk 0:01:03.3]} 31... Qf6 {[%clk 0:00:14.1]}
32. Rh5 {[%clk 0:01:02.4]} 32... Qe7 {[%clk 0:00:13.1]} 33. Be3 {[%clk 0:00:59]}
33... c4 {[%clk 0:00:13]} 34. Qd2 {[%clk 0:00:59]} 34... Nb3 {[%clk 0:00:13.3]}
35. Qg2 {[%clk 0:00:41.9]} 35... Kg8 {[%clk 0:00:13.2]} 36. Qh3 {[%clk
0:00:39.5]} 36... b5 {[%clk 0:00:12.1]} 37. g5 {[%clk 0:00:37.9]} 37... Qc7
{[%clk 0:00:05.3]} 38. Qf5 {[%clk 0:00:34.6]} 38... a6 {[%clk 0:00:03.8]} 39.
Rxh6 {[%clk 0:00:30.9]} 39... Rhxh6 {[%clk 0:00:03.7]} 40. Rxh6 {[%clk
0:00:29.6]} 40... Rxh6+ {[%clk 0:00:03.7]} 41. gxh6 {[%clk 0:00:29.4]} 1-0